Workbook

Sheet Convex Lens Lab
AH2: all cm | AI2: min | AJ2: max | AK2: request | AL2: actual
B3: Choose Lens | L3: WindowsKey+U: | AG3: range | AH3: Lmax | AI3: 0 | AJ3: 120 | AM3: screen | AO3: do | AP3: =AL6-AL5 -> 26.076 | AQ3: proximity | AR3: =ABS(AP5-AL7) -> 42.0855804
L4: Show Animations --> "off" to prevent pulsing when color chnges | AE4: 28 | AF4: (0 to 100) | AG4: 100 | AH4: f | AI4: 16 | AJ4: 24 | AK4: =AI4+(AJ4-AI4)*AE4/AG4 -> 18.24 | AM4: x | AN4: y | AO4: di | AP4: =1/(1/AK4-1/AP3) -> 60.6975804 | AR4: prox zone | AT4: offset
B5: Place Object | L5: Might also have to use File/Options/Advanced/Display/Disable Hardware Graphics Acceleration | AE5: 24 | AF5: (0 to 250) | AG5: 250 | AH5: xobj | AI5: 3 | AJ5: =AJ3-$AI$5 -> 117 | AK5: =AI5+(AJ5-AI5)*AE5/AG5 -> 13.944 | AL5: =IF(AG8,AH8,IF(AK5>AK6-AI5,AK6-AI5,AK5)) -> 13.944 | AM5: =AL7 -> 58.632 | AN5: 0 | AO5: xi | AP5: =AL6+AP4 -> 100.7175804 | AR5: 0.75 | AS5: =IF(AR$3<=AR5,1,0) -> 0 | AT5: =AS5 -> 0
AE6: 81 | AF6: (0 to 250) | AG6: 250 | AH6: xL | AI6: =2*AI5 -> 6 | AJ6: =AJ5-2*AI5 -> 111 | AK6: =AI6+(AJ6-AI6)*AE6/AG6 -> 40.02 | AL6: =MAX(MIN(AK6,AJ6),AI6) -> 40.02 | AM6: =AM5 -> 58.632 | AN6: =1 -> 1 | AO6: ho | AP6: 6 | AR6: 2 | AS6: =IF(AND(SUM(AS5:AS5)=0,AR$3<=AR6),1,0) -> 0 | AT6: =AS6 -> 0
B7: Place Lens | L7: Mac users won't see live updating… | AE7: 122 | AF7: (0 to 250) | AG7: 250 | AH7: xs | AI7: 3 | AJ7: =AJ5 -> 117 | AK7: =AI7+(AJ7-AI7)*AE7/AG7 -> 58.632 | AL7: =IF(AK7<AK6+AI5,AK6+AI5,AK7) -> 58.632 | AO7: m | AP7: =AP4/AP3 -> 2.327718224 | AR7: 5 | AS7: =IF(AND(SUM(AS5:AS6)=0,AR$3<=AR7),1,0) -> 0 | AT7: 0
L8: You have to let go of the control after changing it | AF8: Distant? | AG8: FALSE | AH8: -2999 | AR8: 10 | AS8: =IF(AND(SUM(AS5:AS7)=0,AR$3<=AR8),1,0) -> 0 | AT8: 0
B9: Place Screen | L9: to see any effect! | AF9: offset | AH9: Lens drawing Data | AJ9: Lens final | AL9: Screen basic | AN9: screen final
AF10: =$AF$14*COS(AG11*PI()/180) -> -14.03304899 | AG10: i | AH10: x1 | AI10: y | AJ10: x | AK10: y | AL10: x | AM10: y | AN10: x | AO10: y | BA10: black | BC10: medium gray | BE10: gray | BG10: light gray
B11: Which control? | C11: Better for Macs | F11: Better for PCs | AF11: index | AG11: =AF18 -> -15.90974602 | AH11: =$AF$14*COS(AG11*PI()/180)-$AF$10 -> 0 | AI11: =$AF$14*SIN(AG11*PI()/180) -> 4 | AJ11: =AH11+$AL$6 -> 40.02 | AK11: =AI11 -> 4 | AL11: 0 | AM11: -5 | AN11: =AL11+$AL$7 -> 58.632 | AO11: =AM11 -> -5 | AX11: basic | BA11: sharp1 | BC11: sharp 2 | BE11: sharp3 | BG11: sharp4
AF12: 1.4 | AG12: =AG11-$AF$20 -> -12.72779681 | AH12: -0.2003930524 | AI12: 3.214901488 | AJ12: 39.81960695 | AK12: 3.214901488 | AL12: 2.5 | AM12: =AM11 -> -5 | AN12: 61.132 | AO12: -5 | AP12: basic object | AR12: basic image | AT12: moved object | AV12: scaled image | AX12: moved image | BA12: moved image
AF13: R | AG13: -9.545847611 | AH13: -0.3568987371 | AI13: 2.419890156 | AJ13: 39.66310126 | AK13: 2.419890156 | AL13: =AL12 -> 2.5 | AM13: =-AM12 -> 5 | AN13: 61.132 | AO13: 5 | AP13: x | AQ13: y | AR13: x | AS13: y | AT13: x | AU13: y | AV13: x | AW13: y | AX13: x | AY13: y | AZ13: x | BA13: y | BB13: x | BC13: y | BD13: x | BE13: y | BF13: x | BG13: y
AF14: =AK4*2*(1-AF12) -> -14.592 | AG14: -6.363898407 | AH14: -0.4690344847 | AI14: 1.617417339 | AJ14: 39.55096552 | AK14: 1.617417339 | AL14: =-AL12 -> -2.5 | AM14: =AM13 -> 5 | AN14: 56.132 | AO14: 5 | AP14: 0 | AQ14: 0 | AR14: =-AP14 -> 0 | AS14: =-AQ14 -> 0 | AT14: =AP14+$AL$5 -> 13.944 | AU14: =AQ14 -> 0 | AV14: =AR14*$AP$7 -> 0 | AW14: =AS14*$AP$7 -> 0 | AX14: =AV14 -> 0 | AY14: =AW14 -> 0 | AZ14: =$AX14*$AT$5+$AL$7 -> 58.632 | BA14: =AY14*$AT$5 -> 0 | BB14: =$AX14*$AT$6+$AL$7 -> 58.632 | BC14: =AY14*$AT$6 -> 0 | BD14: =$AX14*$AT$7+$AL$7 -> 58.632 | BE14: =AY14*$AT$7 -> 0 | BF14: =$AX14*$AT$8+$AL$7 -> 58.632 | BG14: =AY14*$AT$8 -> 0
AF15: table y | AG15: -3.181949204 | AH15: -0.5364545361 | AI15: 0.8099573798 | AJ15: 39.48354546 | AK15: 0.8099573798 | AL15: =AL14 -> -2.5 | AM15: =AM11 -> -5 | AN15: 56.132 | AO15: -5 | AP15: 0 | AQ15: -3 | AR15: =-AP15 -> 0 | AS15: =-AQ15 -> 3 | AT15: 13.944 | AU15: =AQ15 -> -3 | AV15: 0 | AW15: 6.983154671 | AX15: =AV15 -> 0 | AY15: =AW15 -> 6.983154671 | AZ15: 58.632 | BA15: 0 | BB15: 58.632 | BC15: 0 | BD15: 58.632 | BE15: 0 | BF15: 58.632 | BG15: 0
AF16: =-6 -> -6 | AG16: 0 | AH16: -0.5589510084 | AI16: 0 | AJ16: 39.46104899 | AK16: 0 | AL16: =AL11 -> 0 | AM16: =AM11 -> -5 | AN16: 58.632 | AO16: -5 | AP16: 0 | AQ16: 3 | AR16: =-AP16 -> 0 | AS16: =-AQ16 -> -3 | AT16: 13.944 | AU16: =AQ16 -> 3 | AV16: 0 | AW16: -6.983154671 | AX16: 0 | AY16: =AW16 -> -6.983154671 | AZ16: 58.632 | BA16: 0 | BB16: 58.632 | BC16: 0 | BD16: 58.632 | BE16: 0 | BF16: 58.632 | BG16: 0
AF17: qmax | AG17: 3.181949204 | AH17: -0.5364545361 | AI17: -0.8099573798 | AJ17: 39.48354546 | AK17: -0.8099573798 | AM17: Ellipse | AN17: ax | AO17: 2 | AP17: -0.5 | AQ17: 2 | AR17: 0.5 | AS17: -2 | AT17: 13.444 | AU17: 2 | AV17: 1.163859112 | AW17: -4.655436447 | AX17: 1.163859112 | AY17: -4.655436447 | AZ17: 58.632 | BA17: 0 | BB17: 58.632 | BC17: 0 | BD17: 58.632 | BE17: 0 | BF17: 58.632 | BG17: 0
AF18: =ASIN(4/AF14)*180/PI() -> -15.90974602 | AG18: 6.363898407 | AH18: -0.4690344847 | AI18: -1.617417339 | AJ18: 39.55096552 | AK18: -1.617417339 | AM18: Table | AN18: by | AO18: =0.5*AP6+0.5 -> 3.5 | AP18: 0 | AQ18: 3 | AR18: 0 | AS18: -3 | AT18: 13.944 | AU18: 3 | AV18: 0 | AW18: -6.983154671 | AX18: 0 | AY18: -6.983154671 | AZ18: 58.632 | BA18: 0 | BB18: 58.632 | BC18: 0 | BD18: 58.632 | BE18: 0 | BF18: 58.632 | BG18: 0
AF19: dq | AG19: 9.545847611 | AH19: -0.3568987371 | AI19: -2.419890156 | AJ19: 39.66310126 | AK19: -2.419890156 | AM19: x | AN19: y | AP19: 0.5 | AQ19: 2 | AR19: -0.5 | AS19: -2 | AT19: 14.444 | AU19: 2 | AV19: -1.163859112 | AW19: -4.655436447 | AX19: -1.163859112 | AY19: -4.655436447 | AZ19: 58.632 | BA19: 0 | BB19: 58.632 | BC19: 0 | BD19: 58.632 | BE19: 0 | BF19: 58.632 | BG19: 0
AF20: =AF18/5 -> -3.181949204 | AG20: 12.72779681 | AH20: -0.2003930524 | AI20: -3.214901488 | AJ20: 39.81960695 | AK20: -3.214901488 | AM20: =AI3+1 -> 1 | AN20: =AF16 -> -6 | AP20: 0 | AQ20: 3 | AR20: 0 | AS20: -3 | AT20: 13.944 | AU20: 3 | AV20: 0 | AW20: -6.983154671 | AX20: 0 | AY20: -6.983154671 | AZ20: 58.632 | BA20: 0 | BB20: 58.632 | BC20: 0 | BD20: 58.632 | BE20: 0 | BF20: 58.632 | BG20: 0
AG21: 15.90974602 | AH21: 0 | AI21: -4 | AJ21: 40.02 | AK21: -4 | AM21: =AM20 -> 1 | AN21: =AN20-2 -> -8 | AP21: 0 | AQ21: 0 | AR21: 0 | AS21: 0 | AT21: 13.944 | AU21: 0 | AV21: 0 | AW21: 0 | AX21: 0 | AY21: 0 | AZ21: 58.632 | BA21: 0 | BB21: 58.632 | BC21: 0 | BD21: 58.632 | BE21: 0 | BF21: 58.632 | BG21: 0
AH22: =-AH11 -> 0 | AI22: -4 | AJ22: 40.02 | AK22: =AI22 -> -4 | AM22: =AJ3-1 -> 119 | AN22: =AN21 -> -8 | AP22: -1 | AQ22: 0 | AR22: 1 | AS22: 0 | AT22: 12.944 | AU22: 0 | AV22: 2.327718224 | AW22: 0 | AX22: 2.327718224 | AY22: 0 | AZ22: 58.632 | BA22: 0 | BB22: 58.632 | BC22: 0 | BD22: 58.632 | BE22: 0 | BF22: 58.632 | BG22: 0
AH23: 0.2003930524 | AI23: -3.214901488 | AJ23: 40.22039305 | AK23: -3.214901488 | AM23: =AM22 -> 119 | AN23: =AN20 -> -6 | AP23: 1 | AQ23: 0 | AR23: -1 | AS23: 0 | AT23: 14.944 | AU23: 0 | AV23: -2.327718224 | AW23: 0 | AX23: -2.327718224 | AY23: 0 | AZ23: 58.632 | BA23: 0 | BB23: 58.632 | BC23: 0 | BD23: 58.632 | BE23: 0 | BF23: 58.632 | BG23: 0
AH24: 0.3568987371 | AI24: -2.419890156 | AJ24: 40.37689874 | AK24: -2.419890156 | AM24: =AN11 -> 58.632 | AN24: -6 | AP24: 1 | AQ24: 0.5 | AR24: -1 | AS24: -0.5 | AT24: 14.944 | AU24: 0.5 | AV24: -2.327718224 | AW24: -1.163859112 | AX24: -2.327718224 | AY24: -1.163859112 | AZ24: 58.632 | BA24: 0 | BB24: 58.632 | BC24: 0 | BD24: 58.632 | BE24: 0 | BF24: 58.632 | BG24: 0
AH25: 0.4690344847 | AI25: -1.617417339 | AJ25: 40.48903448 | AK25: -1.617417339 | AM25: =AM24 -> 58.632 | AN25: =AO11 -> -5 | AP25: 1 | AQ25: -0.5 | AR25: -1 | AS25: 0.5 | AT25: 14.944 | AU25: -0.5 | AV25: -2.327718224 | AW25: 1.163859112 | AX25: -2.327718224 | AY25: 1.163859112 | AZ25: 58.632 | BA25: 0 | BB25: 58.632 | BC25: 0 | BD25: 58.632 | BE25: 0 | BF25: 58.632 | BG25: 0
AH26: 0.5364545361 | AI26: -0.8099573798 | AJ26: 40.55645454 | AK26: -0.8099573798 | AM26: =AM25 -> 58.632 | AN26: -6
AH27: 0.5589510084 | AI27: 0 | AJ27: 40.57895101 | AK27: 0 | AM27: =AJ11 -> 40.02 | AN27: =AN26 -> -6
AH28: 0.5364545361 | AI28: 0.8099573798 | AJ28: 40.55645454 | AK28: 0.8099573798 | AM28: =AM27 -> 40.02 | AN28: =AK22 -> -4
AH29: 0.4690344847 | AI29: 1.617417339 | AJ29: 40.48903448 | AK29: 1.617417339 | AM29: =AM28 -> 40.02 | AN29: =AN27 -> -6
AH30: 0.3568987371 | AI30: 2.419890156 | AJ30: 40.37689874 | AK30: 2.419890156 | AL30: i | AM30: =AL5 -> 13.944 | AN30: =AN29 -> -6
AH31: 0.2003930524 | AI31: 3.214901488 | AJ31: 40.22039305 | AK31: 3.214901488 | AL31: -90 | AM31: =$AM$30+$AO$17*COS($AL31*PI()/180) -> 13.944 | AN31: =$AO$18*SIN($AL31*PI()/180) -> -3.5
AH32: 0 | AI32: 4 | AJ32: 40.02 | AK32: 4 | AL32: -60 | AM32: 14.944 | AN32: -3.031088913
AL33: -30 | AM33: 15.67605081 | AN33: -1.75
AL34: 0 | AM34: 15.944 | AN34: 0
AL35: 30 | AM35: 15.67605081 | AN35: 1.75
AL36: 60 | AM36: 14.944 | AN36: 3.031088913
AL37: 90 | AM37: 13.944 | AN37: 3.5
AL38: 120 | AM38: 12.944 | AN38: 3.031088913
AL39: 150 | AM39: 12.21194919 | AN39: 1.75
AL40: 180 | AM40: 11.944 | AN40: 4.288019592e-16
AL41: 210 | AM41: 12.21194919 | AN41: -1.75
AL42: 240 | AM42: 12.944 | AN42: -3.031088913
AL43: 270 | AM43: 13.944 | AN43: -3.5
AM44: =AM30 -> 13.944 | AN44: =AN30 -> -6
AM45: =AM20 -> 1 | AN45: =AN20 -> -6
